Cogmind - Beta 13 @@@ ROGUE MODE // 2024.05.11 @ 20:00:15 Player: Skrub Result: Destroyed by Piercing Trap Performance ------------- Evolutions (0) 0 Regions Visited (3) 600 Robots Destroyed (27) 135 Value Destroyed (688) 688 Prototype IDs (0) 0 Alien Tech Used (0) 0 Bonus (156) 156 TOTAL SCORE: 1579 Bonus ------- Follower Combat Kills 156 Cogmind --------- Core Integrity 0/250 Matter 300/300 Energy 295/300 System Corruption 0% Temperature Cool (2) Movement Treading (152) Location -10/Subcaves Parts ------- > --- POWER (1) -------- (None) > --- PROPULSION (2) --- Spiked Treads Advanced Treads > --- UTILITY (2) ------ Large Battery Improved Trap Extractor (1/6 Shrapnel) > --- WEAPON (2) ------- Subdweller Laser Subdweller Beam Cannon > --- INVENTORY (5) ---- Subdweller Power Source High-capacity Matter Pod (200) Peak State ------------ > --- POWER ------------ Light Ion Engine > --- PROPULSION ------- Light Treads Advanced Treads > --- UTILITY ---------- Particle Charger Improved Trap Extractor > --- WEAPON ----------- Small Laser Heavy Particle Cannon > --- INVENTORY -------- Large Battery High-capacity Matter Pod Heavy Armor Plating Signal Generator [Rating: 17] Favorites ----------- Power Subdweller Power Source Engine Subdweller Power Source Power Core Light Nuclear Core Propulsion Compact Wheel Treads Advanced Treads Leg Aluminum Leg Wheel Compact Wheel Utility Signal Interpreter Device Sensor Array Storage Large Battery Processor Signal Interpreter Protection Scrap Shield Weapon Assault Rifle Energy Gun Subdweller Laser Energy Cannon Heavy Particle Cannon Ballistic Gun Assault Rifle Launcher Grenade Launcher Build | -11 -10 -10 -10 ------- Run | Yrd Mat Min Sub Slots Evolved . | . . . . Power . | . . . . Propulsion . | . . . . Utility . | . . . . Weapon . | . . . . Parts Attached 41 | 5 18 8 10 Power 5 | 1 1 2 1 Engine 4 | 1 . 2 1 Core 1 | . 1 . . Reactor . | . . . . Propulsion 12 | 2 7 2 1 Treads 3 | . . 2 1 Leg 2 | . 2 . . Wheel 7 | 2 5 . . Hover . | . . . . Flight . | . . . . Utility 11 | . 3 2 6 Device 6 | . 1 2 3 Storage 3 | . 1 . 2 Processor 1 | . 1 . . Hackware . | . . . . Protection 1 | . . . 1 Artifact . | . . . . Weapon 13 | 2 7 2 2 Energy Gun 2 | . . 1 1 Energy Cannon 2 | . . 1 1 Ballistic Gun 7 | 2 5 . . Ballistic Cannon . | . . . . Launcher 2 | . 2 . . Special Weapon . | . . . . Impact Weapon . | . . . . Slashing Weapon . | . . . . Piercing Weapon . | . . . . Special Melee Weapon . | . . . . Unidentified Prototypes . | . . . . Parts Lost 15 | . 4 5 6 Power 2 | . 1 1 . Propulsion 3 | . 1 1 1 Utility 4 | . . 1 3 Weapon 6 | . 2 2 2 Highest Loss Streak 4 | . 3 2 4 To Critical Strikes . | . . . . Average Slot Usage (%) 77 | . 84 80 68 Engine 6 | . 1 4 13 Core 4 | . 10 . . Treads 11 | . . 4 27 Leg 6 | . 15 . . Wheel 9 | . 12 23 . Device 7 | . 7 15 4 Storage 3 | . 2 . 4 Processor 5 | . 7 12 . Energy Gun 3 | . . 4 5 Energy Cannon 4 | . . 1 11 Ballistic Gun 8 | . 15 12 . Launcher 4 | . 10 . . Naked Turns . | . . . . Heaviest Build 30 | 6 13 16 30 Greatest Support 42 | 20 32 42 42 Greatest Overweight (x) 3 | . 3 . 1 Average Overweight (x) . | . . . . Largest Inventory Capacity 5 | 5 5 5 5 Average Capacity 5 | 5 5 5 5 Most Carried 5 | 2 5 5 5 Average Carried 3 | . 3 4 2 Final Capacity 5 | 5 5 5 5 Final Carried 5 | . 5 5 2 Class Distribution -------------------- 92% | Mutant 7% | Scavenger-Mutant Dominant Class ---------------- Mutant | -10/Materials Mutant | -10/Mines Mutant | -10/Subcaves Resources | -11 -10 -10 -10 ----------- Run | Yrd Mat Min Sub Matter Collected 1060 | 264 436 210 150 Remotely . | . . . . Salvage Created 649 | 48 391 108 102 Parts 48 | 2 33 7 6 Haulers Intercepted . | . . . . Recyclers Shooed . | . . . . Parts Field Recycled . | . . . . Retrieved Matter . | . . . . Parts Self-Destructed 8 | . . . 8 Prevented . | . . . . Kills | -11 -10 -10 -10 ------- Run | Yrd Mat Min Sub Combat Hostiles Destroyed 20 | 1 13 4 2 Guns 11 | 1 6 4 . Cannons 2 | . . . 2 AOE 7 | . 7 . . Classes Destroyed 6 | 1 4 . 1 Worker 4 | . 4 . . Builder 2 | . 2 . . Watcher 1 | . 1 . . Swarmer 5 | . 3 2 . Grunt 13 | 1 10 2 . Subdweller 2 | . . . 2 Best Kill Streak 8 | 1 8 2 1 Combat Bots Only 3 | 1 3 2 1 Max Kills in Single Turn 3 | 1 3 1 1 Gunslinging . | . . . . Exploded 3 | . 3 . . Melee . | . . . . Uniques/NPCs Destroyed . | . . . . Combat | -11 -10 -10 -10 -------- Run | Yrd Mat Min Sub Hostile Shots Fired 136 | 8 57 22 49 Missed 41 | 2 15 9 15 Damage Taken 1573 | 74 579 157 763 Core 254 | 12 150 11 81 Absorbed by Shields 44 | . . . 44 Regen/Repaired (Parts) 120 | . 120 . . Core Remaining (%) 95 | 95 . . . Volleys Fired 119 | 4 41 13 61 Largest 2 | 2 2 2 2 Hottest 140 | 40 50 115 140 Shots Fired 155 | 8 48 21 78 Gun 77 | 8 31 17 21 Cannon 61 | . . 4 57 Launcher 17 | . 17 . . Special . | . . . . Kinetic 55 | 8 31 16 . Thermal 83 | . . 5 78 Explosive 17 | . 17 . . Electromagnetic . | . . . . Robot Hit Streak 10 | 3 10 4 8 Robot Miss Streak 3 | 1 2 2 3 Penetration Max . | . . . . Secondary Targets 1 | . . 1 . Max Gunslinging Chain 1 | . . 1 . Shots Hit Robots 71 | 5 31 9 26 Core Hits 59 | 2 45 8 4 Critical Kills . | . . . . Critical Parts Destroyed . | . . . . Critical Strikes . | . . . . Melee Attacks . | . . . . Impact . | . . . . Slashing . | . . . . Piercing . | . . . . Sneak Attacks . | . . . . Combat Hostiles . | . . . . Follow-up Attacks . | . . . . Damage Inflicted 1887 | 60 1243 82 502 Guns 509 | 50 310 82 67 Cannons 435 | . . . 435 Explosions 933 | . 933 . . Melee . | . . . . Ramming 10 | 10 . . . Kinetic 442 | 50 310 82 . Thermal 502 | . . . 502 Explosive 933 | . 933 . . Electromagnetic . | . . . . Impact . | . . . . Slashing . | . . . . Piercing . | . . . . Highest Corruption . | . . . . Average Corruption . | . . . . Corruption Purged . | . . . . Corruption Blocked . | . . . . Overload Shots . | . . . . Overflow Damage 1 | . 1 . . Projectiles . | . . . . Explosions 1 | . 1 . . Melee . | . . . . Knockbacks . | . . . . Impact . | . . . . Kinetic . | . . . . Secondary . | . . . . Self-Inflicted Damage 93 | 5 88 . . Shots 3 | . 3 . . Rammed 1 | 1 . . . Targets Rammed 1 | 1 . . . Kicked . | . . . . Crushed . | . . . . Highest Temperature 156 | 6 21 156 45 Average Temperature 26 | 6 10 86 15 Received Heat Transfer 477 | 36 267 33 141 Siege Activations . | . . . . Robots Corrupted . | . . . . Combat Hostiles . | . . . . Parts Fried . | . . . . Impact Corruptions . | . . . . Robots Melted . | . . . . Combat Hostiles . | . . . . Parts Melted 1 | . . . 1 Heat Transferred 754 | . . . 754 Parts Sabotaged . | . . . . Parts Stolen . | . . . . Parts Stripped . | . . . . Power Chain Reactions . | . . . . Alert | -11 -10 -10 -10 ------- Run | Yrd Mat Min Sub Peak Influence 298 | 20 298 208 . Initial 33 | . 13 33 . Average 106 | 4 125 81 . Maximum Alert Level 1 | . 1 1 . Low Security (%) 90 | 100 89 92 . Level 1 9 | . 10 7 . Level 2 . | . . . . Level 3 . | . . . . Level 4 . | . . . . Level 5 . | . . . . High Security . | . . . . Max Security . | . . . . Squads Dispatched 4 | . 3 1 . Investigation 3 | . 3 . . Extermination . | . . . . Reinforcement . | . . . . Assault 1 | . . 1 . Garrison . | . . . . Intercept . | . . . . Searches Triggered . | . . . . Construction Impeded . | . . . . Haulers Reinforced . | . . . . Active Scanning Responses . | . . . . Cargo Convoy Interrupts . | . . . . Stealth | -11 -10 -10 -10 --------- Run | Yrd Mat Min Sub Distress Signals . | . . . . Communications Jammed . | . . . . Distress Signals . | . . . . Times Spotted 48 | 1 19 10 18 Peak Tracking Total 6 | 1 3 4 6 Tactical Retreats . | . . . . Traps | -11 -10 -10 -10 ------- Run | Yrd Mat Min Sub Traps Triggered 3 | . 2 . 1 Indirectly . | . . . . Trap Hack Attempts . | . . . . Triggered . | . . . . Disarmed . | . . . . Reprogrammed . | . . . . Reused . | . . . . Traps Extracted . | . . . . Installed . | . . . . Triggered . | . . . . Most Traps Carried 1 | . . . 1 Objects Rigged 1 | . 1 . . Machines | -11 -10 -10 -10 ---------- Run | Yrd Mat Min Sub Machines Disabled . | . . . . Max in Single Turn . | . . . . Machines Repaired . | . . . . Machines Dismantled . | . . . . Machines Sabotaged 1 | . 1 . . Overloaded Fab Kills . | . . . . Hacking | -11 -10 -10 -10 --------- Run | Yrd Mat Min Sub Machines Accessed 12 | . 11 1 . Terminals 8 | . 8 . . Fabricators . | . . . . Repair Stations 1 | . 1 . . Recycling Units 2 | . 2 . . Scanalyzers . | . . . . Garrison Access . | . . . . Total Hacks 44 | . 43 1 . Successful 31 | . 30 1 . Failed 13 | . 13 . . Catastrophic . | . . . . Database Lockouts . | . . . . Manual 39 | . 39 . . Terminals 33 | . 33 . . Fabricators . | . . . . Repair Stations 5 | . 5 . . Recycling Units 5 | . 5 . . Scanalyzers . | . . . . Garrison Access . | . . . . Terminal Hacks 5 | . 4 1 . Open Door 1 | . . 1 . Emergency Access Points 1 | . 1 . . Terminal Index 1 | . 1 . . Garrison Index 1 | . 1 . . Zone Layout 1 | . 1 . . Fabricator Hacks . | . . . . Repair Station Hacks 4 | . 4 . . Scan Component 2 | . 2 . . Repair 2 | . 2 . . Recycling Unit Hacks 1 | . 1 . . Report Inventory 1 | . 1 . . Scanalyzer . | . . . . Garrison Access Hacks . | . . . . Unauthorized Hacks 21 | . 21 . . Terminals 16 | . 16 . . Track 1 | . 1 . . Assimilate 4 | . 4 . . Botnet 7 | . 7 . . Detonate 1 | . 1 . . Operators 1 | . 1 . . Sabotage 1 | . 1 . . Search 1 | . 1 . . Fabricators . | . . . . Repair Stations 1 | . 1 . . Mechanics 1 | . 1 . . Recycling Units 4 | . 4 . . Reject 2 | . 2 . . Recyclers 2 | . 2 . . Scanalyzers . | . . . . Garrison Access . | . . . . Data Cores Recovered . | . . . . Used . | . . . . Hacking Detections 8 | . 8 . . Full Trace Events 4 | . 4 . . Feedback Events . | . . . . Feedback Blocked . | . . . . Robot Schematics Acquired . | . . . . Robots Built . | . . . . Authchips . | . . . . Time . | . . . . Total Robot Build Rating . | . . . . Part Schematics Acquired . | . . . . Parts Built . | . . . . Authchips . | . . . . Time . | . . . . Total Part Build Rating . | . . . . Parts Repaired 2 | . 2 . . Time 52 | . 52 . . Parts Recycled . | . . . . Recycled Matter . | . . . . Retrieved Matter . | . . . . Retrieved Components . | . . . . Parts Scanalyzed . | . . . . Part Schematics Acquired . | . . . . Parts Damaged . | . . . . Bothacking | -11 -10 -10 -10 ------------ Run | Yrd Mat Min Sub Used RIF Installer . | . . . . Robots Hacked . | . . . . Non-combat . | . . . . Combat . | . . . . Robot Hacks Applied . | . . . . Relay Couplers Released . | . . . . Fabnet Peak Effective % . | . . . . Robots Rewired . | . . . . Allies Hacked . | . . . . Hacks Repelled . | . . . . Allies | -11 -10 -10 -10 -------- Run | Yrd Mat Min Sub Total Allies 1 | . . 1 . Largest Group 1 | . . 1 1 Highest-Rated Group 31 | . . 31 31 Highest-Rated Ally 31 | . . 31 31 Total Orders . | . . . . Ally Attacks 19 | . . 13 6 Total Damage 314 | . . 209 105 Kills 5 | . . 4 1 Allies Corrupted . | . . . . Allies Melted . | . . . . Intel | -11 -10 -10 -10 ------- Run | Yrd Mat Min Sub Robot Analysis Total . | . . . . Derelict Logs Recovered 4 | . . 3 1 Drone Launches . | . . . . Drone Recoveries . | . . . . Exploration | -11 -10 -10 -10 ------------- Run | Yrd Mat Min Sub Turns Passed 3095 | 82 1227 595 1191 Spaces Moved 2281 | 83 1022 514 662 Core 21 | 20 1 . . Treads 700 | . . 38 662 Legs 490 | . 490 . . Wheels 1070 | 63 531 476 . Hover . | . . . . Flight . | . . . . Fastest Speed 50 | 50 80 100 152 Average Speed 118 | 72 106 103 153 Slowest Speed 225 | 80 200 152 225 Overloaded Moves . | . . . . Propulsion Burnouts . | . . . . Robots Hopped . | . . . . Cave-ins Triggered . | . . . . Exploration Rate (%) 55 | 7 96 66 51 Regions Visited 3 Branch Regions 2 Pre-discovered Areas . | . . . . Known Exits Taken 2 | . 1 1 . Unknown Exits Taken 1 | 1 . . . Scrap Searched 1 | . . 1 . Spaces Dug 3 | . . 3 . Terrain Destroyed 69 | . 65 3 1 Melee . | . . . . Projectile 4 | . . 3 1 AOE 65 | . 65 . . Terrain Rammed . | . . . . Walls Destroyed . | . . . . Machines Disabled . | . . . . Actions | -11 -10 -10 -10 --------- Run | Yrd Mat Min Sub Total 2529 | 97 1111 558 763 Wait 42 | . 11 12 19 Move 2278 | 82 1021 513 662 Hop . | . . . . Pick Up 31 | 5 14 8 4 Fast Attach 10 | . 7 2 1 Attach 26 | 5 7 6 8 Detach 3 | . . . 3 Swap 5 | . 4 . 1 Drop 14 | . 6 4 4 Fire 119 | 4 41 13 61 Melee . | . . . . Ram 1 | 1 . . . Kick . | . . . . Crush . | . . . . Escape Stasis . | . . . . Rewire . | . . . . Trap . | . . . . Miscellaneous . | . . . . Route ------- -11/Scrapyard -10/Materials (discovered 4 exits: *Mat x3 / *Min) -10/Mines (discovered 4 exits: *Mat x2 / *Exi / *Sub) -10/Subcaves History --------- Turn | Location | Event 2 | -11/Scrapyard | Met Revision 17 33 | -11/Scrapyard | Discovered new exit (range 8) 83 | -11/Scrapyard | Entered Materials 240 | -10/Materials | Discovered new exit (range 15) 303 | -10/Materials | Build established: Mutant 329 | -10/Materials | Discovered new exit (range 13) 409 | -10/Materials | Repaired Grenade Launcher? 458 | -10/Materials | Repaired Assault Rifle 479 | -10/Materials | Discovered new exit (range 15) 702 | -10/Materials | Identified exit to Materials 756 | -10/Materials | Identified exit to Mines 989 | -10/Materials | Discovered exit to Materials (range 13) 1083 | -10/Materials | Core integrity fell below 50% 1109 | -10/Materials | Lost 3 parts (1p2w) 1310 | -10/Materials | Entered Mines 1329 | -10/Mines | Identified exit to Subcaves 1420 | -10/Mines | Met a Derelict testing a Signal Generator 1430 | -10/Mines | Found Signal Generator 1482 | -10/Mines | Discovered exit to Materials (range 4) 1550 | -10/Mines | Discovered exit to Materials (range 7) 1681 | -10/Mines | Identified exit to Exiles 1787 | -10/Mines | Deemed a non-threat by the Exiles lab entrance 1813 | -10/Mines | Met a Derelict who couldn't figure out how to use a Trap Extractor 1905 | -10/Mines | Entered Subcaves 1905 | -10/Subcaves | Accompanied by 1 ally 1935 | -10/Subcaves | Ambushed by Subdwellers from Twisted Machinery 1992 | -10/Subcaves | Ambushed by swarm of Subdwellers 1995 | -10/Subcaves | Ambushed by Subdwellers from Twisted Machinery 1995 | -10/Subcaves | Ambushed by Subdwellers from Twisted Machinery 2002 | -10/Subcaves | Core integrity fell below 20% 2038 | -10/Subcaves | Lost 4 parts (3u1w) 2654 | -10/Subcaves | Learned Materials trap positions 2712 | -10/Subcaves | Shifting Twisted Machinery released Sub. Monowheel 3086 | -10/Subcaves | A swath of the cavern ceiling suddenly collapsed 3096 | -10/Subcaves | Destroyed by Piercing Trap Last Messages --------------- 02951_ Acquired 8 matter. 02953_ Acquired 2 matter. 02991_ HV Slug penetrates Twisted Machinery. 03000_ 13-68D(R) destroyed. 03009_ Sub. Power Source shoots sparks and powers down. 03014_ Dropped Broken Sub. Power Source. 03014_ Acquired Broken Sub. Power Source. 03046_ HV Slug penetrates ZP-GGD(g). 03046_ ZP-GGD(g) suffers critical hit (Destroy). 03046_ ZP-GGD(g) knocked back. 03057_ HV Slug penetrates XH-NC2(R). 03057_ XH-NC2(R) destroyed. 03086_ Sub. Monowheel crushed. 03086_ Scrap Shield Fragment crushed. A swath of the cavern ceiling suddenly collapses. 03096_ Triggered Piercing Trap. 03096_ Spikes shoot up from the floor. Map ----- +----------------------------------------------------+ | ?????????????????????????????????????????????????? | | ?????????????????????????????????????????????????# | | ?????????????????????????????????????????????????# | | ?????????????????????????????????????????????????# | | ?????????????????????????????????????????????????# | | ?????????????????????????????????????????????????? | | ?????????????????????????????????????????????????? | | ?????????????????????????????????????????????????? | | ?????????????????????????????????????????????????? | | ?????????????????????????????????????????????????? | | ?????????????????????????????????????????????????? | | ?????????????????????????????????????????????????? | | ?????????????????????????????????????????????????? | | ?????????????????????????????????????????????????? | | ??????????????????????????####???????????????????# | | ????????????????????????## #?????# ##??######?## | | ???????????????????????## ??????# # ""##" | | ??????????????????????## ????????" "" | | ????????????????????### ???????? "" " | | ???????????????????## ???????????""" ##"%& | | ???????????????????# ????????????"???##!"! | | ????????????????????# ##?##???????????##"" " | | ?????????????????????# ###"#????###???## """ | | ??????????????????????# ;""? "## ##?## "" | | ???????????????????????# #;## " ??# "" | | ????????????????????????#@ ;;#?" #???#" "" | | ????????????????????????## ###?# #????##" "" | | ?????????????????????????#g h ### = ##??###"" "" | | ?????????????????????????# # # ## #?## "" " | | ????????????????????????### ##""# #?# " " | | ????????????????????????# ;# %### | | ?????????????????##?????# #### | | ????????????????## ##### ##??# % | | ????????????????# #???# | | ???????????????## ##???# | | ???????????????# ###??# ## | | ??????????????# #### ## | | ??????????????###### #? | | ???????????????????## ### | | ????????????????????## #??# #### | | ?????????????????????###???# #####??# | | ???????????????????????????# ##??????## | | ???????????????????????????# ## ##????????? | | ???????????????????????????## #####??????????# | | ????????????????????????????#####???????????????## | | ?????????????????????????????????????????????????? | | ?????????????????????????????????????????????????? | | ?????????????????????????????????????????????????? | | ?????????????????????????????????????????????????? | | ?????????????????????????????????????????????????? | +----------------------------------------------------+ Best States ------------- Heat Dissipation 25 Energy Generation 15 Energy Capacity 400 Matter Stores 300 Matter Capacity 300 Sight Range 16 Robot Scan Range 14 Terrain Scan Density 10 Armor Coverage 800 Evasion (%) 55 Recoil Reduction 2 Particle Charging 15 Trap Extractor Capacity 6 Item Schematics ----------------- None Robot Schematics ------------------ None Fabricated ------------ Nothing Alien Tech Used ----------------- None Achievements -------------- Brute Force Crack Shot Part-time Mechanic Challenges ------------ None Game ------ Seed DisruptorChainNullifier Manual? 0 Play Time 00:45:49 Cumulative 2.3 hours Start 2024.05.11 @ 19:09:45 End 2024.05.11 @ 20:00:15 Sessions 1 Manual Loads 0 Difficulty Rogue Special Mode None Game No. 2 Rogue 2 Adventurer 0 Explorer 0 Win Type - Total 0 Types 0/0/0/0/0/0/0/0/0 Lore% 3 Gallery% 5 Achievement% 8 Wizard Run 0 Options --------- Layout 1 ASCII 0 Keyboard 0 Movement Mouse Keybinds 0 Fullscreen 1 Font 24/Smallcaps Map View 50x35 Zoom Use 0% Tactical HUD 1 Map Filters NONE Filters NONE Steam 1 RUN: b3f7dc2b-c8f9-467a-b14f-1e4d8f460d16